[Event "Titled Tuesday Blitz November 15 Early 2022"]
[White "Sadubayev, Airat"]
[Black "Dudzinski, Pawel"]
[WhiteFideId "13713264"]
[BlackFideId "1117890"]
[WhiteElo "2160"]
[BlackElo "2086"]
[Result "0-1"]
[Round "03"]
[TimeControl "180+1"]
[Date "2022.11.16"]
[WhiteClock "0:01:13"]
[BlackClock "0:00:21"]

1. d4 {[%clk 0:02:57]}  d5 {[%clk 0:02:59]} 2. c4 {[%clk 0:02:57]}  e6 {[%clk 0:02:59]} 3. Nf3 {[%clk 0:02:57]}  c6 {[%clk 0:02:59]} 4. g3 {[%clk 0:02:57]}  f5 {[%clk 0:02:59]} 5. Bg2 {[%clk 0:02:56]}  Nf6 {[%clk 0:03:00]} 6. O-O {[%clk 0:02:56]}  Be7 {[%clk 0:03:00]} 7. b3 {[%clk 0:02:56]}  O-O {[%clk 0:03:01]} 8. a4 {[%clk 0:02:56]}  Bd7 {[%clk 0:03:01]} 9. Ba3 {[%clk 0:02:56]}  Be8 {[%clk 0:02:59]} 10. Bxe7 {[%clk 0:02:54]}  Qxe7 {[%clk 0:03:00]} 11. Ne5 {[%clk 0:02:47]}  Nbd7 {[%clk 0:03:00]} 12. Nxd7 {[%clk 0:02:46]}  Qxd7 {[%clk 0:02:59]} 13. Nc3 {[%clk 0:02:45]}  Bh5 {[%clk 0:02:56]} 14. Qd3 {[%clk 0:02:42]}  Ne4 {[%clk 0:02:55]} 15. Rfc1 {[%clk 0:02:33]}  Nxc3 {[%clk 0:02:39]} 16. Rxc3 {[%clk 0:02:32]}  f4 {[%clk 0:02:39]} 17. Qd2 {[%clk 0:02:21]}  g5 {[%clk 0:02:14]} 18. e3 {[%clk 0:02:01]}  fxg3 {[%clk 0:02:03]} 19. fxg3 {[%clk 0:01:54]}  Bf3 {[%clk 0:01:58]} 20. Rf1 {[%clk 0:01:49]}  Bxg2 {[%clk 0:01:32]} 21. Qxg2 {[%clk 0:01:48]}  Rxf1+ {[%clk 0:01:32]} 22. Qxf1 {[%clk 0:01:48]}  Rf8 {[%clk 0:01:32]} 23. Qe2 {[%clk 0:01:47]}  Qf7 {[%clk 0:01:25]} 24. Rc1 {[%clk 0:01:46]}  Kg7 {[%clk 0:01:18]} 25. Re1 {[%clk 0:01:41]}  Qf3 {[%clk 0:01:04]} 26. Qxf3 {[%clk 0:01:40]}  Rxf3 {[%clk 0:01:04]} 27. g4 {[%clk 0:01:41]}  h5 {[%clk 0:00:49]} 28. gxh5 {[%clk 0:01:40]}  Kh6 {[%clk 0:00:47]} 29. Kg2 {[%clk 0:01:37]}  g4 {[%clk 0:00:46]} 30. b4 {[%clk 0:01:37]}  dxc4 {[%clk 0:00:40]} 31. b5 {[%clk 0:01:34]}  c3 {[%clk 0:00:29]} 32. bxc6 {[%clk 0:01:33]}  bxc6 {[%clk 0:00:30]} 33. Re2 {[%clk 0:01:33]}  Kxh5 {[%clk 0:00:29]} 34. a5 {[%clk 0:01:25]}  a6 {[%clk 0:00:27]} 35. Re1 {[%clk 0:01:24]}  Kg5 {[%clk 0:00:27]} 36. Re2 {[%clk 0:01:20]}  Kf5 {[%clk 0:00:27]} 37. e4+ {[%clk 0:01:17]}  Kf4 {[%clk 0:00:28]} 38. e5 {[%clk 0:01:14]}  Rd3 {[%clk 0:00:24]} 39. Kf2 {[%clk 0:01:11]}  Rd2 {[%clk 0:00:20]} 40. Rxd2 {[%clk 0:01:11]}  cxd2 {[%clk 0:00:20]} 41. Ke2 {[%clk 0:01:12]}  Ke4 {[%clk 0:00:21]} 42. Kxd2 {[%clk 0:01:13]}  Kxd4 {[%clk 0:00:21]} 0-1


[Site "https://www.chess.com"]

[Event "Titled Tuesday Blitz November 15 Early 2022"]
[White "Salman, Pavel"]
[Black "Kula, Robert"]
[WhiteFideId "24153753"]
[BlackFideId "1101218"]
[WhiteElo "2187"]
[BlackElo "2184"]
[Result "0-1"]
[Round "03"]
[TimeControl "180+1"]
[Date "2022.11.16"]
[WhiteClock "0:00:03"]
[BlackClock "0:00:11"]

1. d4 {[%clk 0:03:00]}  d5 {[%clk 0:02:59]} 2. Nc3 {[%clk 0:02:59]}  c6 {[%clk 0:02:59]} 3. Bf4 {[%clk 0:02:58]}  Bf5 {[%clk 0:02:58]} 4. e3 {[%clk 0:02:57]}  Nf6 {[%clk 0:02:57]} 5. f3 {[%clk 0:02:57]}  e6 {[%clk 0:02:54]} 6. g4 {[%clk 0:02:58]}  Bg6 {[%clk 0:02:54]} 7. h4 {[%clk 0:02:58]}  h5 {[%clk 0:02:53]} 8. g5 {[%clk 0:02:57]}  Nfd7 {[%clk 0:02:52]} 9. Bd3 {[%clk 0:02:57]}  Bxd3 {[%clk 0:02:51]} 10. Qxd3 {[%clk 0:02:58]}  g6 {[%clk 0:02:51]} 11. e4 {[%clk 0:02:58]}  Nb6 {[%clk 0:02:48]} 12. O-O-O {[%clk 0:02:51]}  Bd6 {[%clk 0:02:47]} 13. Nge2 {[%clk 0:02:50]}  Nc4 {[%clk 0:02:45]} 14. Rhe1 {[%clk 0:02:45]}  Qb6 {[%clk 0:02:34]} 15. Na4 {[%clk 0:02:34]}  Qa6 {[%clk 0:02:32]} 16. b3 {[%clk 0:02:10]}  Ba3+ {[%clk 0:01:59]} 17. Kb1 {[%clk 0:02:10]}  b5 {[%clk 0:01:51]} 18. Nac3 {[%clk 0:02:09]}  Nb2 {[%clk 0:01:49]} 19. Qe3 {[%clk 0:02:03]}  Nxd1 {[%clk 0:01:48]} 20. Rxd1 {[%clk 0:02:04]}  O-O {[%clk 0:01:45]} 21. Ng3 {[%clk 0:01:56]}  Nd7 {[%clk 0:01:44]} 22. Be5 {[%clk 0:01:46]}  Nxe5 {[%clk 0:01:37]} 23. dxe5 {[%clk 0:01:47]}  Qb6 {[%clk 0:01:35]} 24. Qf4 {[%clk 0:01:43]}  Be7 {[%clk 0:01:29]} 25. Nce2 {[%clk 0:01:37]}  Kg7 {[%clk 0:01:29]} 26. Qc1 {[%clk 0:01:29]}  a5 {[%clk 0:01:28]} 27. f4 {[%clk 0:01:28]}  a4 {[%clk 0:01:26]} 28. f5 {[%clk 0:01:28]}  Bc5 {[%clk 0:01:07]} 29. Rd3 {[%clk 0:01:14]}  axb3 {[%clk 0:01:05]} 30. cxb3 {[%clk 0:01:11]}  dxe4 {[%clk 0:01:01]} 31. Nxe4 {[%clk 0:01:08]}  Ba3 {[%clk 0:00:59]} 32. Qf4 {[%clk 0:00:53]}  exf5 {[%clk 0:00:58]} 33. Nf6 {[%clk 0:00:53]}  Rfd8 {[%clk 0:00:58]} 34. Nd4 {[%clk 0:00:48]}  Rxd4 {[%clk 0:00:47]} 35. Rxd4 {[%clk 0:00:46]}  Rd8 {[%clk 0:00:44]} 36. Nd7 {[%clk 0:00:22]}  Qa5 {[%clk 0:00:34]} 37. e6 {[%clk 0:00:16]}  Qe1+ {[%clk 0:00:32]} 38. Kc2 {[%clk 0:00:16]}  Qe2+ {[%clk 0:00:30]} 39. Rd2 {[%clk 0:00:14]}  Qxe6 {[%clk 0:00:29]} 40. Qd4+ {[%clk 0:00:14]}  f6 {[%clk 0:00:25]} 41. Qxf6+ {[%clk 0:00:12]}  Qxf6 {[%clk 0:00:24]} 42. gxf6+ {[%clk 0:00:13]}  Kh7 {[%clk 0:00:22]} 43. f7 {[%clk 0:00:12]}  Kg7 {[%clk 0:00:20]} 44. f8=Q+ {[%clk 0:00:04]}  Bxf8 {[%clk 0:00:19]} 45. Ne5 {[%clk 0:00:04]}  Rxd2+ {[%clk 0:00:19]} 46. Kxd2 {[%clk 0:00:05]}  c5 {[%clk 0:00:18]} 47. Ke3 {[%clk 0:00:03]}  Bd6 {[%clk 0:00:18]} 48. Nd7 {[%clk 0:00:03]}  Kf7 {[%clk 0:00:17]} 49. a4 {[%clk 0:00:03]}  bxa4 {[%clk 0:00:17]} 50. bxa4 {[%clk 0:00:04]}  Ke6 {[%clk 0:00:17]} 51. Nb6 {[%clk 0:00:04]}  Bc7 {[%clk 0:00:17]} 52. Nc4 {[%clk 0:00:04]}  Kd5 {[%clk 0:00:17]} 53. Kd3 {[%clk 0:00:04]}  Bd8 {[%clk 0:00:17]} 54. a5 {[%clk 0:00:04]}  Kc6 {[%clk 0:00:16]} 55. a6 {[%clk 0:00:03]}  Bxh4 {[%clk 0:00:14]} 56. Nd6 {[%clk 0:00:03]}  Bd8 {[%clk 0:00:12]} 57. Nf7 {[%clk 0:00:03]}  Bb6 {[%clk 0:00:12]} 58. Ne5+ {[%clk 0:00:03]}  Kd5 {[%clk 0:00:12]} 59. Nxg6 {[%clk 0:00:03]}  c4+ {[%clk 0:00:12]} 60. Kc3 {[%clk 0:00:03]}  Bd4+ {[%clk 0:00:13]} 61. Kc2 {[%clk 0:00:03]}  Ke4 {[%clk 0:00:13]} 62. Nh4 {[%clk 0:00:03]}  f4 {[%clk 0:00:12]} 63. Ng2 {[%clk 0:00:02]}  f3 {[%clk 0:00:12]} 64. Nh4 {[%clk 0:00:02]}  f2 {[%clk 0:00:12]} 65. a7 {[%clk 0:00:03]}  Bxa7 {[%clk 0:00:11]} 66. Nf3 {[%clk 0:00:04]}  Kxf3 {[%clk 0:00:10]} 67. Kc3 {[%clk 0:00:03]}  f1=Q {[%clk 0:00:11]} 0-1


[Site "https://www.chess.com"]

[Event "Titled Tuesday Blitz November 15 Early 2022"]
[White "Sarkar, Justin"]
[Black "Garcia Ramos, Daniel"]
[WhiteFideId "2010011"]
[BlackFideId "32010311"]
[WhiteElo "2239"]
[BlackElo "2357"]
[Result "0-1"]
[Round "03"]
[TimeControl "180+1"]
[Date "2022.11.16"]
[WhiteClock "0:00:01"]
[BlackClock "0:01:23"]

1. d4 {[%clk 0:02:48]}  d5 {[%clk 0:02:57]} 2. c4 {[%clk 0:02:47]}  e6 {[%clk 0:02:58]} 3. Nc3 {[%clk 0:02:46]}  Nf6 {[%clk 0:02:58]} 4. Nf3 {[%clk 0:02:39]}  c5 {[%clk 0:02:57]} 5. cxd5 {[%clk 0:02:37]}  Nxd5 {[%clk 0:02:58]} 6. e3 {[%clk 0:02:11]}  Be7 {[%clk 0:02:55]} 7. Bd3 {[%clk 0:02:08]}  O-O {[%clk 0:02:54]} 8. O-O {[%clk 0:02:06]}  Nxc3 {[%clk 0:02:42]} 9. bxc3 {[%clk 0:02:04]}  Nc6 {[%clk 0:02:42]} 10. Qc2 {[%clk 0:01:21]}  h6 {[%clk 0:02:40]} 11. Bh7+ {[%clk 0:01:19]}  Kh8 {[%clk 0:02:39]} 12. Be4 {[%clk 0:01:20]}  Qc7 {[%clk 0:02:38]} 13. Bb2 {[%clk 0:01:00]}  b6 {[%clk 0:02:33]} 14. dxc5 {[%clk 0:00:19]}  Bxc5 {[%clk 0:02:31]} 15. c4 {[%clk 0:00:17]}  f5 {[%clk 0:02:18]} 16. Bxc6 {[%clk 0:00:08]}  Qxc6 {[%clk 0:02:17]} 17. Ne5 {[%clk 0:00:05]}  Qe8 {[%clk 0:02:14]} 18. e4 {[%clk 0:00:03]}  Bb7 {[%clk 0:02:05]} 19. exf5 {[%clk 0:00:02]}  exf5 {[%clk 0:02:06]} 20. Rae1 {[%clk 0:00:02]}  Qh5 {[%clk 0:02:00]} 21. Kh1 {[%clk 0:00:02]}  Rad8 {[%clk 0:01:46]} 22. f3 {[%clk 0:00:01]}  Bd4 {[%clk 0:01:33]} 23. Rd1 {[%clk 0:00:01]}  Bxb2 {[%clk 0:01:23]} 0-1


[Site "https://www.chess.com"]

[Event "Titled Tuesday Blitz November 15 Early 2022"]
[White "Seemann, Jakub"]
[Black "Marcolino, Daniel Mattos"]
[WhiteFideId "21874697"]
[BlackFideId "2106841"]
[WhiteElo "2275"]
[BlackElo "2130"]
[Result "1-0"]
[Round "03"]
[TimeControl "180+1"]
[Date "2022.11.16"]
[WhiteClock "0:01:33"]
[BlackClock "0:01:38"]

1. Nf3 {[%clk 0:03:00]}  d5 {[%clk 0:02:59]} 2. g3 {[%clk 0:02:57]}  Nf6 {[%clk 0:02:59]} 3. Bg2 {[%clk 0:02:57]}  e6 {[%clk 0:03:00]} 4. O-O {[%clk 0:02:57]}  b6 {[%clk 0:03:00]} 5. b3 {[%clk 0:02:57]}  Bb7 {[%clk 0:03:01]} 6. Bb2 {[%clk 0:02:58]}  Be7 {[%clk 0:03:01]} 7. c4 {[%clk 0:02:58]}  O-O {[%clk 0:03:01]} 8. Qc2 {[%clk 0:02:54]}  c5 {[%clk 0:03:00]} 9. Rd1 {[%clk 0:02:54]}  Nbd7 {[%clk 0:02:56]} 10. d4 {[%clk 0:02:54]}  Qc7 {[%clk 0:02:47]} 11. Nbd2 {[%clk 0:02:50]}  Rac8 {[%clk 0:02:46]} 12. Rac1 {[%clk 0:02:47]}  cxd4 {[%clk 0:02:46]} 13. Nxd4 {[%clk 0:02:46]}  dxc4 {[%clk 0:02:43]} 14. bxc4 {[%clk 0:02:11]}  Bxg2 {[%clk 0:02:42]} 15. Kxg2 {[%clk 0:02:12]}  Nc5 {[%clk 0:02:35]} 16. N2b3 {[%clk 0:02:07]}  Rfd8 {[%clk 0:02:33]} 17. Kg1 {[%clk 0:02:04]}  Qb7 {[%clk 0:01:57]} 18. Nxc5 {[%clk 0:01:54]}  Bxc5 {[%clk 0:01:57]} 19. Nb3 {[%clk 0:01:53]}  Be7 {[%clk 0:01:50]} 20. Rxd8+ {[%clk 0:01:37]}  Rxd8 {[%clk 0:01:51]} 21. Rd1 {[%clk 0:01:37]}  Rxd1+ {[%clk 0:01:49]} 22. Qxd1 {[%clk 0:01:38]}  Qd7 {[%clk 0:01:47]} 23. Qd3 {[%clk 0:01:36]}  Kf8 {[%clk 0:01:40]} 24. Bxf6 {[%clk 0:01:33]}  Qxd3 {[%clk 0:01:37]} 25. Bxe7+ {[%clk 0:01:32]}  Kxe7 {[%clk 0:01:38]} 26. exd3 {[%clk 0:01:33]}  Kd6 {[%clk 0:01:38]} 1-0


[Site "https://www.chess.com"]

[Event "Titled Tuesday Blitz November 15 Early 2022"]
[White "Shapiro, Daniel"]
[Black "Rodriguez Fontecha, Marcos"]
[WhiteFideId "2001780"]
[BlackFideId "2256576"]
[WhiteElo "2291"]
[BlackElo "2263"]
[Result "0-1"]
[Round "03"]
[TimeControl "180+1"]
[Date "2022.11.16"]
[WhiteClock "0:00:16"]
[BlackClock "0:01:36"]

1. d4 {[%clk 0:03:00]}  d5 {[%clk 0:02:59]} 2. c4 {[%clk 0:03:00]}  Nc6 {[%clk 0:03:00]} 3. cxd5 {[%clk 0:02:58]}  Qxd5 {[%clk 0:03:00]} 4. e3 {[%clk 0:02:58]}  e5 {[%clk 0:03:01]} 5. Nc3 {[%clk 0:02:58]}  Bb4 {[%clk 0:03:02]} 6. Bd2 {[%clk 0:02:58]}  Bxc3 {[%clk 0:03:02]} 7. Bxc3 {[%clk 0:02:59]}  exd4 {[%clk 0:03:01]} 8. Ne2 {[%clk 0:02:59]}  Nf6 {[%clk 0:03:02]} 9. Nxd4 {[%clk 0:02:59]}  O-O {[%clk 0:03:03]} 10. Nb5 {[%clk 0:02:47]}  Qg5 {[%clk 0:03:02]} 11. Nxc7 {[%clk 0:01:54]}  Bg4 {[%clk 0:03:00]} 12. Qb3 {[%clk 0:01:44]}  Rac8 {[%clk 0:02:49]} 13. Nb5 {[%clk 0:01:41]}  Ne4 {[%clk 0:02:39]} 14. Be2 {[%clk 0:01:09]}  Bxe2 {[%clk 0:02:35]} 15. Kxe2 {[%clk 0:01:08]}  Qxg2 {[%clk 0:02:35]} 16. Raf1 {[%clk 0:01:05]}  Qg4+ {[%clk 0:02:14]} 17. Ke1 {[%clk 0:01:00]}  Ng5 {[%clk 0:02:12]} 18. f3 {[%clk 0:00:49]}  Nxf3+ {[%clk 0:02:01]} 19. Kf2 {[%clk 0:00:49]}  Nh4 {[%clk 0:02:01]} 20. Qd5 {[%clk 0:00:35]}  Rfd8 {[%clk 0:01:55]} 21. h3 {[%clk 0:00:29]}  Qg6 {[%clk 0:01:46]} 22. Rhg1 {[%clk 0:00:19]}  Rxd5 {[%clk 0:01:44]} 23. Rxg6 {[%clk 0:00:17]}  hxg6 {[%clk 0:01:39]} 24. a4 {[%clk 0:00:16]}  Rf5+ {[%clk 0:01:38]} 25. Ke2 {[%clk 0:00:16]}  Rxf1 {[%clk 0:01:39]} 26. Kxf1 {[%clk 0:00:16]}  Nf5 {[%clk 0:01:36]} 0-1


[Site "https://www.chess.com"]

[Event "Titled Tuesday Blitz November 15 Early 2022"]
[White "Shipov, Sergei"]
[Black "Storey, Charles H"]
[WhiteFideId "4113624"]
[BlackFideId "406686"]
[WhiteElo "2766"]
[BlackElo "2252"]
[Result "1-0"]
[Round "03"]
[TimeControl "180+1"]
[Date "2022.11.16"]
[WhiteClock "0:00:37"]
[BlackClock "0:00:02"]

1. d4 {[%clk 0:03:00]}  g6 {[%clk 0:02:37]} 2. c4 {[%clk 0:02:59]}  Bg7 {[%clk 0:02:38]} 3. Nc3 {[%clk 0:02:56]}  c5 {[%clk 0:02:38]} 4. d5 {[%clk 0:02:52]}  d6 {[%clk 0:02:37]} 5. e4 {[%clk 0:02:52]}  Nf6 {[%clk 0:02:37]} 6. Bd3 {[%clk 0:02:51]}  e5 {[%clk 0:02:36]} 7. h3 {[%clk 0:02:50]}  h5 {[%clk 0:02:36]} 8. Nf3 {[%clk 0:02:49]}  Nbd7 {[%clk 0:02:35]} 9. O-O {[%clk 0:02:45]}  O-O {[%clk 0:02:34]} 10. Bg5 {[%clk 0:02:44]}  a6 {[%clk 0:02:34]} 11. a3 {[%clk 0:02:37]}  a5 {[%clk 0:02:32]} 12. Rb1 {[%clk 0:02:36]}  b6 {[%clk 0:02:30]} 13. Re1 {[%clk 0:02:34]}  Re8 {[%clk 0:02:19]} 14. Qd2 {[%clk 0:02:30]}  Nf8 {[%clk 0:02:14]} 15. b4 {[%clk 0:02:30]}  axb4 {[%clk 0:02:13]} 16. axb4 {[%clk 0:02:30]}  Qd7 {[%clk 0:02:03]} 17. bxc5 {[%clk 0:02:27]}  bxc5 {[%clk 0:02:02]} 18. Rb6 {[%clk 0:02:27]}  Ra6 {[%clk 0:01:52]} 19. Reb1 {[%clk 0:02:25]}  Rxb6 {[%clk 0:01:53]} 20. Rxb6 {[%clk 0:02:25]}  N6h7 {[%clk 0:01:48]} 21. Nb5 {[%clk 0:02:19]}  Nxg5 {[%clk 0:01:37]} 22. Qxg5 {[%clk 0:02:19]}  Nh7 {[%clk 0:01:34]} 23. Qe3 {[%clk 0:02:13]}  Bf8 {[%clk 0:01:33]} 24. Bc2 {[%clk 0:02:07]}  Qd8 {[%clk 0:01:30]} 25. Rb8 {[%clk 0:02:02]}  Qa5 {[%clk 0:01:29]} 26. Qc3 {[%clk 0:01:55]}  Qa2 {[%clk 0:01:24]} 27. Rb6 {[%clk 0:01:47]}  Rd8 {[%clk 0:01:13]} 28. Qb3 {[%clk 0:01:30]}  Qa5 {[%clk 0:01:08]} 29. Rb8 {[%clk 0:01:25]}  Kg7 {[%clk 0:00:56]} 30. Qa3 {[%clk 0:01:22]}  Qxa3 {[%clk 0:00:38]} 31. Nxa3 {[%clk 0:01:23]}  Be7 {[%clk 0:00:38]} 32. Nb5 {[%clk 0:01:21]}  Ba6 {[%clk 0:00:37]} 33. Rxd8 {[%clk 0:01:20]}  Bxd8 {[%clk 0:00:37]} 34. Nxd6 {[%clk 0:01:21]}  f6 {[%clk 0:00:31]} 35. Ba4 {[%clk 0:01:10]}  Nf8 {[%clk 0:00:31]} 36. Bb5 {[%clk 0:01:10]}  Be7 {[%clk 0:00:24]} 37. Bxa6 {[%clk 0:00:49]}  Bxd6 {[%clk 0:00:24]} 38. Bc8 {[%clk 0:00:44]}  Kf7 {[%clk 0:00:19]} 39. h4 {[%clk 0:00:44]}  Ke7 {[%clk 0:00:19]} 40. Ne1 {[%clk 0:00:45]}  Nd7 {[%clk 0:00:19]} 41. Bxd7 {[%clk 0:00:43]}  Kxd7 {[%clk 0:00:20]} 42. Nd3 {[%clk 0:00:43]}  Kc7 {[%clk 0:00:16]} 43. Nc1 {[%clk 0:00:43]}  Kd7 {[%clk 0:00:12]} 44. Nb3 {[%clk 0:00:43]}  f5 {[%clk 0:00:10]} 45. g3 {[%clk 0:00:40]}  Ke7 {[%clk 0:00:10]} 46. Kg2 {[%clk 0:00:40]}  Kf6 {[%clk 0:00:10]} 47. Kf3 {[%clk 0:00:40]}  g5 {[%clk 0:00:10]} 48. hxg5+ {[%clk 0:00:37]}  Kxg5 {[%clk 0:00:11]} 49. exf5 {[%clk 0:00:38]}  Kxf5 {[%clk 0:00:11]} 50. Nd2 {[%clk 0:00:38]}  Be7 {[%clk 0:00:08]} 51. Ne4 {[%clk 0:00:38]}  Kg6 {[%clk 0:00:05]} 52. d6 {[%clk 0:00:36]}  Bf8 {[%clk 0:00:05]} 53. d7 {[%clk 0:00:36]}  Be7 {[%clk 0:00:05]} 54. Nxc5 {[%clk 0:00:36]}  Kf5 {[%clk 0:00:05]} 55. Nb7 {[%clk 0:00:36]}  e4+ {[%clk 0:00:05]} 56. Ke2 {[%clk 0:00:36]}  Ke6 {[%clk 0:00:02]} 57. d8=Q {[%clk 0:00:37]} 1-0


[Site "https://www.chess.com"]

[Event "Titled Tuesday Blitz November 15 Early 2022"]
[White "Skliarov, Viktor"]
[Black "Pein, Jonathan"]
[WhiteFideId "14106736"]
[BlackFideId "417092"]
[WhiteElo "2284"]
[BlackElo "2227"]
[Result "0-1"]
[Round "03"]
[TimeControl "180+1"]
[Date "2022.11.16"]
[WhiteClock "0:00:03"]
[BlackClock "0:01:03"]

1. e4 {[%clk 0:03:00]}  e5 {[%clk 0:02:59]} 2. Nc3 {[%clk 0:03:00]}  Nc6 {[%clk 0:02:56]} 3. Bc4 {[%clk 0:02:59]}  Na5 {[%clk 0:02:48]} 4. Bxf7+ {[%clk 0:02:38]}  Kxf7 {[%clk 0:02:43]} 5. Qh5+ {[%clk 0:02:36]}  g6 {[%clk 0:02:28]} 6. Qxe5 {[%clk 0:02:36]}  Nc6 {[%clk 0:02:28]} 7. Qxh8 {[%clk 0:02:35]}  Bg7 {[%clk 0:02:06]} 8. Qxh7 {[%clk 0:02:33]}  Nd4 {[%clk 0:02:05]} 9. Nf3 {[%clk 0:01:59]}  Nxc2+ {[%clk 0:02:01]} 10. Kd1 {[%clk 0:01:59]}  Nxa1 {[%clk 0:01:59]} 11. d4 {[%clk 0:02:00]}  d5 {[%clk 0:01:55]} 12. Ne5+ {[%clk 0:01:47]}  Kf8 {[%clk 0:01:51]} 13. Nxg6+ {[%clk 0:01:40]}  Kf7 {[%clk 0:01:52]} 14. Ne5+ {[%clk 0:01:23]}  Kf8 {[%clk 0:01:50]} 15. exd5 {[%clk 0:00:59]}  Nf6 {[%clk 0:01:49]} 16. Qg6 {[%clk 0:00:53]}  Qe8 {[%clk 0:01:44]} 17. Qb1 {[%clk 0:00:25]}  Qh5+ {[%clk 0:01:40]} 18. f3 {[%clk 0:00:25]}  Nd7 {[%clk 0:01:22]} 19. Nxd7+ {[%clk 0:00:18]}  Bxd7 {[%clk 0:01:22]} 20. Qxa1 {[%clk 0:00:19]}  Bh3 {[%clk 0:01:23]} 21. gxh3 {[%clk 0:00:05]}  Qxf3+ {[%clk 0:01:22]} 22. Kc2 {[%clk 0:00:05]}  Qxh1 {[%clk 0:01:21]} 23. a4 {[%clk 0:00:06]}  Re8 {[%clk 0:01:21]} 24. Qa3+ {[%clk 0:00:06]}  Kg8 {[%clk 0:01:20]} 25. Bf4 {[%clk 0:00:05]}  Bxd4 {[%clk 0:01:16]} 26. Qb4 {[%clk 0:00:03]}  Qg2+ {[%clk 0:01:13]} 27. Kb3 {[%clk 0:00:03]}  Bxc3 {[%clk 0:01:12]} 28. Qxc3 {[%clk 0:00:03]}  Qxd5+ {[%clk 0:01:12]} 29. Ka3 {[%clk 0:00:03]}  Re4 {[%clk 0:01:07]} 30. Qg3+ {[%clk 0:00:03]}  Kf7 {[%clk 0:01:06]} 31. Bxc7 {[%clk 0:00:03]}  Qc5+ {[%clk 0:01:06]} 32. Ka2 {[%clk 0:00:03]}  Rxa4+ {[%clk 0:01:06]} 33. Kb3 {[%clk 0:00:03]}  Qc4# {[%clk 0:01:03]} 0-1


[Site "https://www.chess.com"]

[Event "Titled Tuesday Blitz November 15 Early 2022"]
[White "Slugin, Sergey"]
[Black "Indjic, Aleksandar"]
[WhiteFideId "4122569"]
[BlackFideId "911925"]
[WhiteElo "2330"]
[BlackElo "2592"]
[Result "0-1"]
[Round "03"]
[TimeControl "180+1"]
[Date "2022.11.15"]
[WhiteClock "0:00:19"]
[BlackClock "0:01:01"]

1. Nf3 {[%clk 0:03:00]}  g6 {[%clk 0:02:58]} 2. g3 {[%clk 0:03:00]}  Bg7 {[%clk 0:02:58]} 3. d4 {[%clk 0:03:01]}  d6 {[%clk 0:02:57]} 4. Bg2 {[%clk 0:03:01]}  Nd7 {[%clk 0:02:57]} 5. O-O {[%clk 0:02:58]}  e5 {[%clk 0:02:57]} 6. e4 {[%clk 0:02:55]}  Ngf6 {[%clk 0:02:56]} 7. Nc3 {[%clk 0:02:56]}  O-O {[%clk 0:02:55]} 8. a4 {[%clk 0:02:55]}  c6 {[%clk 0:02:49]} 9. h3 {[%clk 0:02:55]}  a5 {[%clk 0:02:49]} 10. Re1 {[%clk 0:02:55]}  Re8 {[%clk 0:02:48]} 11. Be3 {[%clk 0:02:52]}  Qc7 {[%clk 0:02:47]} 12. Qd2 {[%clk 0:02:49]}  exd4 {[%clk 0:02:20]} 13. Bxd4 {[%clk 0:02:50]}  Ne5 {[%clk 0:02:18]} 14. Nxe5 {[%clk 0:02:44]}  dxe5 {[%clk 0:02:19]} 15. Bc5 {[%clk 0:02:45]}  Bf8 {[%clk 0:02:18]} 16. Bxf8 {[%clk 0:02:25]}  Rxf8 {[%clk 0:02:19]} 17. Rad1 {[%clk 0:02:24]}  Be6 {[%clk 0:02:18]} 18. Qe3 {[%clk 0:02:24]}  Rfd8 {[%clk 0:02:17]} 19. Bf1 {[%clk 0:02:21]}  Kg7 {[%clk 0:02:15]} 20. b3 {[%clk 0:02:14]}  h5 {[%clk 0:02:13]} 21. h4 {[%clk 0:02:09]}  Bg4 {[%clk 0:02:04]} 22. f3 {[%clk 0:02:04]}  Be6 {[%clk 0:02:03]} 23. Kg2 {[%clk 0:02:00]}  Rxd1 {[%clk 0:01:51]} 24. Rxd1 {[%clk 0:02:01]}  Rd8 {[%clk 0:01:51]} 25. Rxd8 {[%clk 0:01:57]}  Qxd8 {[%clk 0:01:51]} 26. Kf2 {[%clk 0:01:52]}  Qd6 {[%clk 0:01:48]} 27. Ke1 {[%clk 0:01:43]}  Nd7 {[%clk 0:01:45]} 28. Qd2 {[%clk 0:01:38]}  Qc5 {[%clk 0:01:42]} 29. Nd1 {[%clk 0:01:25]}  Kf8 {[%clk 0:01:26]} 30. Ne3 {[%clk 0:01:25]}  Ke7 {[%clk 0:01:17]} 31. Qf2 {[%clk 0:01:07]}  Qd4 {[%clk 0:01:15]} 32. Qd2 {[%clk 0:01:04]}  Qc5 {[%clk 0:01:11]} 33. Qf2 {[%clk 0:01:04]}  b5 {[%clk 0:01:04]} 34. axb5 {[%clk 0:00:52]}  cxb5 {[%clk 0:01:05]} 35. Kd1 {[%clk 0:00:50]}  a4 {[%clk 0:01:04]} 36. bxa4 {[%clk 0:00:36]}  bxa4 {[%clk 0:01:05]} 37. Kc1 {[%clk 0:00:30]}  a3 {[%clk 0:01:02]} 38. Nd5+ {[%clk 0:00:25]}  Bxd5 {[%clk 0:01:01]} 39. Qxc5+ {[%clk 0:00:26]}  Nxc5 {[%clk 0:01:02]} 40. exd5 {[%clk 0:00:27]}  Na4 {[%clk 0:01:02]} 41. c4 {[%clk 0:00:19]}  a2 {[%clk 0:01:01]} 0-1


[Site "https://www.chess.com"]

[Event "Titled Tuesday Blitz November 15 Early 2022"]
[White "Sowul, Bartosz"]
[Black "Aradhya, Garg"]
[WhiteFideId "1137590"]
[BlackFideId "25006746"]
[WhiteElo "2188"]
[BlackElo "2223"]
[Result "1-0"]
[Round "03"]
[TimeControl "180+1"]
[Date "2022.11.16"]
[WhiteClock "0:00:28"]
[BlackClock "0:00:27"]

1. e4 {[%clk 0:03:00]}  e5 {[%clk 0:02:59]} 2. Nf3 {[%clk 0:03:01]}  Nc6 {[%clk 0:03:00]} 3. Bb5 {[%clk 0:03:01]}  a6 {[%clk 0:03:00]} 4. Bxc6 {[%clk 0:03:01]}  dxc6 {[%clk 0:02:59]} 5. O-O {[%clk 0:03:01]}  Bd6 {[%clk 0:03:00]} 6. d4 {[%clk 0:03:01]}  exd4 {[%clk 0:03:00]} 7. Qxd4 {[%clk 0:03:01]}  f6 {[%clk 0:03:01]} 8. Be3 {[%clk 0:03:02]}  Ne7 {[%clk 0:03:01]} 9. Nbd2 {[%clk 0:03:02]}  Be6 {[%clk 0:03:01]} 10. Qc3 {[%clk 0:03:02]}  Ng6 {[%clk 0:02:57]} 11. Rad1 {[%clk 0:02:54]}  Qe7 {[%clk 0:02:56]} 12. Nb3 {[%clk 0:02:53]}  Bxb3 {[%clk 0:02:37]} 13. Qxb3 {[%clk 0:02:54]}  O-O-O {[%clk 0:02:36]} 14. Nd2 {[%clk 0:02:12]}  Rhf8 {[%clk 0:02:20]} 15. Rfe1 {[%clk 0:02:04]}  f5 {[%clk 0:02:19]} 16. exf5 {[%clk 0:01:35]}  Rxf5 {[%clk 0:02:20]} 17. Nc4 {[%clk 0:01:29]}  Bxh2+ {[%clk 0:00:48]} 18. Kxh2 {[%clk 0:01:27]}  Qh4+ {[%clk 0:00:48]} 19. Kg1 {[%clk 0:01:27]}  Rxd1 {[%clk 0:00:48]} 20. Rxd1 {[%clk 0:01:24]}  Rh5 {[%clk 0:00:48]} 21. Nd6+ {[%clk 0:00:32]}  cxd6 {[%clk 0:00:45]} 22. Qe6+ {[%clk 0:00:32]}  Kb8 {[%clk 0:00:36]} 23. Qxd6+ {[%clk 0:00:28]}  Ka8 {[%clk 0:00:27]} 24. Qd8+ {[%clk 0:00:27]}  Qxd8 {[%clk 0:00:27]} 25. Rxd8# {[%clk 0:00:28]} 1-0


[Site "https://www.chess.com"]